Workbook

Sheet Couverture
B7: Projet: | C7: B2B
B8: Numero de projet: 2026
B12: Adresse:
B14: …
B15: …
B16: …
A40: Ing: Oussama Rouchdi
A41: www.oussamarouchdi.com | D41: Contact | E41: n'hesitez pas a me contacter
A42: 2026-12-31

Sheet Toit 1 versant
A2: Neige
A4: Ce document présente le calcul de la charge de neige agissant sur la toiture, conformément aux prescriptions
A5: de l’Eurocode 1 (EN 1991-1-3). Le toit étudié est un toit plat, sans pente significative. La charge de neige est
A6: déterminée en fonction de la zone climatique, de l’altitude du site, et des coefficients de forme adaptés
A7: à la géométrie du toit.
L8: Zone | M8: Zone1 | O8: peut etre modifier
L9: A | M9: 10 | O9: sk | P9: =ROUND(Daten!G10,2) -> 0.65
L10: α | M10: 11
F11: =Daten!H14&" . "&Daten!I10&"kN/m² = "&Daten!H14*Daten!I10&"kN/m²" -> 0,8 . 0,65kN/m² = 0,52kN/m²
C18: =M10 -> 11

Sheet Toit 2 versant
A3: Ce document présente le calcul de la charge de neige agissant sur la toiture, conformément aux prescriptions
A4: de l’Eurocode 1 (EN 1991-1-3). Le toit étudié est un toit à double pente symétrique, également appelé toit à
A5: deux versants, avec des pentes α₁ et α₂.Le schéma ci-dessous montre les cas de charge de neige en
A6: fonction de différentes configurations
B8: =Daten!H32&" . "&Daten!I27&" = "&ROUND(Daten!H32*Daten!I27,2)&"kN/m²" -> 0 . 0,65 = 0kN/m² | E8: =Daten!Q32&" . "&Daten!I27&" = "&ROUND(Daten!Q32*Daten!I27,2)&"kN/m²" -> 0,67 . 0,65 = 0,44kN/m² | L8: Zone | M8: Zone1 | O8: peut etre modifier
L9: A | M9: 10 | O9: sk | P9: =ROUND(Daten!G27,2) -> 0.65
L10: α1 | M10: 80
L11: α2 | M11: 35
B13: =Daten!H32&" . "&Daten!I27&" = "&ROUND(Daten!H32*Daten!I27,2)&"kN/m²" -> 0 . 0,65 = 0kN/m² | E13: ="0,5 . "&Daten!Q32&" . "&Daten!I27&" = "&ROUND(0.5*Daten!Q32*Daten!I27,2)&"kN/m²" -> 0,5 . 0,67 . 0,65 = 0,22kN/m²
B17: ="0,5 . "&Daten!H32&" . "&Daten!I27&" = "&ROUND(0.5*Daten!H32*Daten!I27,2)&"kN/m²" -> 0,5 . 0 . 0,65 = 0kN/m² | E17: =Daten!Q32&" . "&Daten!I27&" = "&ROUND(Daten!Q32*Daten!I27,2)&"kN/m²" -> 0,67 . 0,65 = 0,44kN/m²
B22: =M10 -> 80
C23: =M11 -> 35

Sheet Toit 2x2 N
A3: Ce document présente le calcul de la charge de neige agissant sur la toiture, conformément aux prescriptions de l’Eurocode 1
A4: (EN 1991-1-3). Le toit étudié est constitué de deux versants inclinés, définis deux versants, avec des pentes α₁ et α₂.
A5: Le schéma ci-dessous montre les cas de charge de neige en par les angles α₁ et α₂, formant une toiture typique à deux pans.
A6: Dans cette configuration, les deux versants sont supposés exposés de manière identique, sans effet de balayage du
A7: vent (cas non balayé). Par conséquent, la charge de neige uniforme est appliquée de manière égale sur chaque pan.
L8: Zone | M8: Zone1a | O8: peut etre modifier
L9: A | M9: 450 | O9: sk | P9: =Daten!G43 -> 0.92
D10: =0.8*P9&"kN/m²" -> 0,736kN/m² | L10: α1 | M10: 10
F11: =Daten!Q48&" . "&'Toit 2x2 N'!P9 &" = "&Daten!Q48*'Toit 2x2 N'!P9&"kN/m²" -> 0,8 . 0,92 = 0,736kN/m² | L11: α2 | M11: 10
A12: =Daten!H48&" . "&'Toit 2x2 N'!P9 &" = "&Daten!H48*'Toit 2x2 N'!P9&"kN/m²" -> 0,8 . 0,92 = 0,736kN/m²
B17: =M10 -> 10 | F17: =M11 -> 10

Sheet Toit 2x2 B
A2: Ce document présente le calcul de la charge de neige agissant sur la toiture, conformément aux prescriptions de l’Eurocode 1
A3: (EN 1991-1-3). Le toit étudié est constitué de deux versants inclinés, définis deux versants, avec des pentes α₁ et α₂.
A4: Le schéma ci-dessous montre les cas de charge de neige en par les angles α₁ et α₂, formant une toiture typique à deux pans.
A5: Dans cette configuration, l’un des versants est supposé balayé par le vent, ce qui réduit ou élimine l'accumulation de neige
A6: sur ce versant. Par conséquent, la charge de neige est concentrée sur le versant opposé, pouvant atteindre une valeur
A7: plus élevée en raison de l'accumulation due au vent.
L8: Zone | M8: Zone2a | O8: peut etre modifier
E9: =ROUND(Daten!Z66,2)&" . "&P9&" = "&ROUND(P9*Daten!Q65,2)&"kN/m²" -> 1,47 . 1,06 = 0,85kN/m² | L9: A | M9: 10 | O9: sk | P9: =ROUND(Daten!G60,2) -> 1.06
C10: =Daten!Q65&" . "&P9&" = "&P9*Daten!Q65&"kN/m²" -> 0,8 . 1,06 = 0,848kN/m² | F10: =C10 -> 0,8 . 1,06 = 0,848kN/m² | L10: α1 | M10: 40
E11: =A12 -> 0,53 . 1,06 = 0,5618kN/m² | L11: α2 | M11: 10
A12: =Daten!H65&" . "&P9&" = "&P9*Daten!H65&"kN/m²" -> 0,53 . 1,06 = 0,5618kN/m²
B17: =M10 -> 40 | F17: =M11 -> 10

Sheet Toit C N
A3: Ce document présente le calcul de la charge de neige agissant sur la toiture, conformément aux prescriptions
A4: de l’Eurocode 1 (EN 1991-1-3). Étant donné la courbure régulière du toit, sans discontinuités abruptes,
A5: une charge de neige uniformément répartie est appliquée sur la totalité de la surface supérieure.
L8: Zone | M8: Zone1a | O8: peut etre modifier
D9: ="0,8 . " & P9&" = "& 0.8*P9&"kN/m²" -> 0,8 . 0,81 = 0,648kN/m² | L9: A | M9: 10 | O9: sk | P9: =ROUND(Daten!G78,2) -> 0.81

Sheet Toit C B
A3: Ce document présente le calcul de la charge de neige agissant sur la toiture, conformément aux prescriptions
A4: de l’Eurocode 1 (EN 1991-1-3). Étant donné la courbure régulière du toit, sans discontinuités abruptes,
A5: une charge de neige uniformément répartie est appliquée sur la totalité de la surface supérieure.
A6: Dans ce cas, la neige est supposée partiellement balayée par le vent, ce qui conduit à une
A7: accumulation de neige réduite sur une partie du toit.
A8: Ainsi, une charge complète s’applique sur la zone exposée au vent, tandis qu’une charge réduite | L8: Zone | M8: Zone1 | O8: peut etre modifier
A9: est appliquée sur la zone balayée. | L9: A | M9: 20 | O9: sk | P9: =ROUND(Daten!S78,2) -> 0.65
E11: =P9&"kN/m²" -> 0,65kN/m²
C12: ="0,5 . 1 . "&P9&" = "& 0.5*P9&"kN/m²" -> 0,5 . 1 . 0,65 = 0,325kN/m²

Sheet Toit + PaSol
A3: Ce document présente le calcul de la charge de neige agissant sur la toiture, conformément aux prescriptions
A4: de l’Eurocode 1 (EN 1991-1-3). Dans ce cas, la toiture plate est équipée de panneaux solaires inclinés,
A5: ce qui peut entraîner une accumulation localisée de neige à l’arrière des panneaux. Cette configuration
A6: modifie la répartition de la charge de neige sur le toit, avec une surcharge potentielle dans les zones
A7: situées derrière les panneaux, simulée ici par une zone de charge accrue.
L10: Zone | M10: Zone3 | O10: peut etre modifier
B11: =Daten!H100&" . "&P11&"="&Daten!H100*P11&"kN/m²" -> 0,8 . 1,1=0,88kN/m² | E11: =E36&" . "&P11&"="&E36*P11&"kN/m²" -> 1 . 1,1=1,1kN/m² | L11: A | M11: 10 | O11: sk | P11: =Daten!G96 -> 1.1
L13: l1 | M13: 12
L14: h | M14: 2
G17: =M14 -> 2
D25: =M13 -> 12
C33: =D25&" + 2 . "&H17&" = "&D25*H17&"m" -> 12 + 2 . = 0m
E34: ="min(2 . "&M14&"/"&P11&" ; 1)" -> min(2 . 2/1,1 ; 1)
C36: ="("&Daten!H100&" ; "&Daten!H101&")" -> (0,8 ; 0,8) | E36: =IF(2*M14/P11>=MAX(Daten!H100,Daten!H101), MIN(2*M14/P11, 1), "") -> 1

Sheet Toit dis
A3: Ce document présente le calcul de la surcharge de neige due à un saut de hauteur de toiture, conformément aux
A4: prescriptions de l’Eurocode 1 (EN 1991-1-3). Le bâtiment étudié comporte une toiture principale et un appentis
A5: de hauteur inférieure. La configuration génère une accumulation locale de neige sur le toit bas.
A6: Le calcul de la charge est effectué en fonction de la hauteur de chute, de la largeur de l’appentis, ainsi que
A7: des limites géométriques imposées par la norme.
L10: Zone | M10: Zone1 | O10: peut etre modifier
C11: =M12 -> 5 | L11: A | M11: 50 | O11: sk | P11: =Daten!G114 -> 0.65
L12: α | M12: 5
G13: =M13 -> 4 | L13: h | M13: 4 | O13: peut etre modifier si le toit n est pas plat (curvee par exemple) + modifier la description G40
L14: b1 | M14: 40 | O14: Mu1 | P14: 0.8
L15: b2 | M15: 3
C18: =M14 -> 40 | E18: =M15 -> 3
A22: Dans un premier temps, la longueur d'accumulation de neige sera déterminée. Elle correspond à deux
A23: fois la hauteur du saut de toiture Cette valeur est ensuite vérifiée par rapport aux limites imposées
A24: par l’Eurocode,
E25: =2&" . "&M13 &" ="&2*M13&"m" -> 2 . 4 =8m
A26: Le coefficient de forme µw est ensuite déterminé en fonction de la géométrie du toit,
A27: conformément à l’Eurocode 1 (EN 1991-1-3). Il représente un coefficient majoré associé à
A28: l’accumulation de neige en pied de saut, et dépend notamment de la hauteur du saut et de la
A29: longueur d’accumulation.
D31: ="("&C18&" + "&E18&") /"&2*M13 &" =" -> (40 + 3) /8 = | E31: =ROUND((C18+E18)/(2*M13),2) -> 5.38
D33: ="2 . "&M13&" /"&P11 -> 2 . 4 /0,65 | E33: =ROUND(2*M13/P11,2) -> 12.31
D35: =MIN(E33,E31) -> 5.38
A36: =IF(M12<=15, "Comme l’inclinaison du toit est inférieure ou égale à 15 degrés, le coefficient de forme est égal à :", "Comme l’inclinaison du toit est supérieure à 15 degrés, le coefficient de forme est égal à la moitié") -> Comme l’inclinaison du toit est inférieure ou égale à 15 degrés, le coefficient de forme est égal à :
A37: =IF(M12<=15, "", "celui du toit supérieur, soit 0,8, selon l’hypothèse admise par l’Eurocode.") -> 
D38: =IF(M12<=15, "0", "0,5 . 0,8 =0,4") -> 0
C39: 0.8 | E39: 2.4
D40: =MIN(MAX(0.8,D35),2.4) -> 2.4 | F40: =P14 -> 0.8 | G40: toit plat
D42: =ROUND(D40*P11,2) -> 1.56 | F42: =ROUND(F40*P11,2) -> 0.52
A51: La charge de neige est modélisée par une charge rectangulaire uniforme, complétée
A52: par une charge triangulaire localisée le long de la zone d’accumulation ls.
C54: =2*M13 -> 8
A55: =D42 -> 1.56 | I55: Choix de cas si ls est sup ou inf a b2 masquer les cellules depuis le boutton - a gauche
E56: =F42 -> 0.52
D59: =C70 -> 3
A63: Comme la largeur b1 du toit est inférieure à la longueur d'accumulation ls, la charge de neige est
A64: répartie de manière trapézoïdale sur la surface concernée
A67: =D42 -> 1.56 | D67: =A67*C70/C54 -> 0.585
C70: =E18 -> 3

Sheet Acc
A3: Ce document présente le calcul de la charge de neige agissant sur la toiture, conformément aux prescriptions
A4: de l’Eurocode 1 (EN 1991-1-3). Le toit étudié est un toit plat, sans pente significative soumis à la présence
A5: d’un obstacle. Lorsqu’un mur ou parapet de hauteur h borde la toiture, la neige y forme un bourrelet avant
A6: de se répartir progressivement sur le reste du toit.
A7: Conformément à l’Eurocode 1 (EN 1991-1-3), on distingue deux zones :
A8: . Une zone d’accumulation, immédiatement au pied de l’obstacle, où la charge de neige est majorée, | L8: Zone | M8: Zone1a | O8: peut etre modifier
A9: . Une zone de distribution normale, plus éloignée, où la neige repose de façon habituelle. | L9: A | M9: 10 | O9: sk | P9: =ROUND(Daten!S78,2) -> 0.65
L10: h | M10: 0.5
F14: =" 2 . "&M10&"/"&P9&"="&ROUND(2*M10/P9,2)&"kN/m²" -> 2 . 0,5/0,65=1,54kN/m²

Sheet deb
A3: Ce document illustre le cas de neige en débord de toiture selon l’Eurocode 1 (EN 1991-1-3) . Lorsqu’un toit
A4: dépasse de son support, une couche de neige peut s’y accumuler sans être retenue par une pente.
L8: Zone | M8: Zone1a | O8: peut etre modifier
L9: A | M9: 10 | O9: sk | P9: =ROUND(Daten!S78,2) -> 0.65
E11: ="0,4 . "&P9&"²/ 3 "&ROUND(0.4*P9/3,2)&"kN/m²" -> 0,4 . 0,65²/ 3 0,09kN/m²

Sheet Daten
G4: sk1 | H4: =IF(F6<=30,"0≤α≤30", IF(AND(F6>30,F6<60),"30<α<60", IF(F6>=60,"60≤α",""))) -> 0≤α≤30
A5: Zone1 | B5: =0.19+0.91*((F5+140)/760)^2 -> 0.2254484072 | C5: > | D5: 0.65 | E5: A= | F5: ='Toit 1 versant'!M9 -> 10 | G5: =MAX(B5,D5) -> 0.65
A6: Zone1a | B6: =1.25*(0.19+0.91*((F5+140)/760)^2) -> 0.281810509 | C6: > | D6: 0.81 | E6: alpha | F6: ='Toit 1 versant'!M10 -> 11 | G6: =MAX(B6,D6) -> 0.81
A7: Zone2 | B7: =0.25+1.91*((F5+140)/760)^2 -> 0.3244027008 | C7: > | D7: 0.85 | G7: 0.85
A8: Zone2a | B8: =1.25*(0.25+1.91*((F5+140)/760)^2) -> 0.405503376 | C8: > | D8: 1.06 | G8: 1.06
A9: Zone3 | B9: =0.31+2.91*((F5+140)/760)^2 -> 0.4233569945 | C9: > | D9: 1.1 | G9: 1.1
F10: sk(calcul2) | G10: =VLOOKUP('Toit 1 versant'!M8,Daten!A5:G9,7) -> 0.65 | H10: sk choisis | I10: ='Toit 1 versant'!P9 -> 0.65
C13: 0≤α≤30 | D13: 30<α<60 | E13: 60≤α
A14: toit 1 versant | B14: µ1(α) | C14: 0.8 | D14: =0.8*(60-F6)/30 -> 1.306666667 | E14: 0 | G14: µ1(α) | H14: =HLOOKUP(H4,C13:E14,2,FALSE) -> 0.8
A15: s | B15: µ2(α) | C15: 0.8 | D15: =0.8*(60-F6)/30 -> 1.306666667 | E15: 0 | G15: µ2(α) | H15: =HLOOKUP(H4,C13:E15,3,FALSE) -> 0.8
A16: IN | B16: µ3(α) | C16: =0.8+0.8*F6/30 -> 1.093333333 | D16: 1.6 | E16: 1.6 | G16: µ3(α) | H16: =HLOOKUP(H4,C13:E16,4,FALSE) -> 1.093333333
G21: sk1 | H21: =IF(F23<=30,"0≤α≤30", IF(AND(F23>30,F23<60),"30<α<60", IF(F23>=60,"60≤α",""))) -> 60≤α | P21: sk1 | Q21: =IF(O23<=30,"0≤α≤30", IF(AND(O23>30,O23<60),"30<α<60", IF(O23>=60,"60≤α",""))) -> 30<α<60
A22: Zone1 | B22: =0.19+0.91*((F22+140)/760)^2 -> 0.2254484072 | C22: > | D22: 0.65 | E22: A= | F22: ='Toit 2 versant'!M9 -> 10 | G22: =MAX(B22,D22) -> 0.65 | J22: Zone1 | K22: =0.19+0.91*((O22+140)/760)^2 -> 0.2254484072 | L22: > | M22: 0.65 | N22: A= | O22: =F22 -> 10 | P22: =MAX(K22,M22) -> 0.65
A23: Zone1a | B23: =1.25*(0.19+0.91*((F22+140)/760)^2) -> 0.281810509 | C23: > | D23: 0.81 | E23: alpha1 | F23: ='Toit 2 versant'!M10 -> 80 | G23: =MAX(B23,D23) -> 0.81 | J23: Zone1a | K23: =1.25*(0.19+0.91*((O22+140)/760)^2) -> 0.281810509 | L23: > | M23: 0.81 | N23: alpha2 | O23: ='Toit 2 versant'!M11 -> 35 | P23: =MAX(K23,M23) -> 0.81
A24: Zone2 | B24: =0.25+1.91*((F22+140)/760)^2 -> 0.3244027008 | C24: > | D24: 0.85 | G24: 0.85 | J24: Zone2 | K24: =0.25+1.91*((O22+140)/760)^2 -> 0.3244027008 | L24: > | M24: 0.85 | P24: 0.85
A25: Zone2a | B25: =1.25*(0.25+1.91*((F22+140)/760)^2) -> 0.405503376 | C25: > | D25: 1.06 | G25: 1.06 | J25: Zone2a | K25: =1.25*(0.25+1.91*((O22+140)/760)^2) -> 0.405503376 | L25: > | M25: 1.06 | P25: 1.06
A26: Zone3 | B26: =0.31+2.91*((F22+140)/760)^2 -> 0.4233569945 | C26: > | D26: 1.1 | G26: 1.1 | J26: Zone3 | K26: =0.31+2.91*((O22+140)/760)^2 -> 0.4233569945 | L26: > | M26: 1.1 | P26: 1.1
F27: sk(calcul2) | G27: =VLOOKUP('Toit 2 versant'!M8,Daten!A22:G26,7) -> 0.65 | H27: sk choisis | I27: ='Toit 1 versant'!P9 -> 0.65 | O27: sk(calcul2) | P27: =G27 -> 0.65 | Q27: sk choisis | R27: =I27 -> 0.65
C30: 0≤α≤30 | D30: 30<α<60 | E30: 60≤α | L30: 0≤α≤30 | M30: 30<α<60 | N30: 60≤α
A31: toit 2 versant | B31: µ1(α) | C31: 0.8 | D31: =0.8*(60-F23)/30 -> -0.5333333333 | E31: 0 | G31: µ1(α) | H31: =HLOOKUP(H21,C30:E31,2,FALSE) -> 0 | J31: toit 2 versant | K31: µ1(α) | L31: 0.8 | M31: =ROUND(0.8*(60-O23)/30,2) -> 0.67 | N31: 0 | P31: µ1(α) | Q31: =HLOOKUP(Q21,L30:N31,2,FALSE) -> 0.67
A32: s | B32: µ2(α) | C32: 0.8 | D32: =0.8*(60-F23)/30 -> -0.5333333333 | E32: 0 | G32: µ2(α) | H32: =HLOOKUP(H21,C30:E32,3,FALSE) -> 0 | J32: s | K32: µ2(α) | L32: 0.8 | M32: =ROUND(0.8*(60-O23)/30,2) -> 0.67 | N32: 0 | P32: µ2(α) | Q32: =HLOOKUP(Q21,L30:N32,3,FALSE) -> 0.67
A33: IN | B33: µ3(α) | C33: =0.8+0.8*F23/30 -> 2.933333333 | D33: 1.6 | E33: 1.6 | G33: µ3(α) | H33: =HLOOKUP(H21,C30:E33,4,FALSE) -> 1.6 | J33: IN | K33: µ3(α) | L33: =ROUND(0.8+0.8*O23/30,2) -> 1.73 | M33: 1.6 | N33: 1.6 | P33: µ3(α) | Q33: =HLOOKUP(Q21,L30:N33,4,FALSE) -> 1.6
G37: sk1 | H37: =IF(F39<=30,"0≤α≤30", IF(AND(F39>30,F39<60),"30<α<60", IF(F39>=60,"60≤α",""))) -> 0≤α≤30 | P37: sk1 | Q37: =IF(O39<=30,"0≤α≤30", IF(AND(O39>30,O39<60),"30<α<60", IF(O39>=60,"60≤α",""))) -> 0≤α≤30
A38: Zone1 | B38: =0.19+0.91*((F38+140)/760)^2 -> 0.7384262465 | C38: > | D38: 0.65 | E38: A= | F38: ='Toit 2x2 N'!M9 -> 450 | G38: =MAX(B38,D38) -> 0.7384262465 | J38: Zone1 | K38: =0.19+0.91*((O38+140)/760)^2 -> 0.7384262465 | L38: > | M38: 0.65 | N38: A= | O38: =F38 -> 450 | P38: =MAX(K38,M38) -> 0.7384262465
A39: Zone1a | B39: =1.25*(0.19+0.91*((F38+140)/760)^2) -> 0.9230328082 | C39: > | D39: 0.81 | E39: alpha | F39: ='Toit 2x2 N'!M10 -> 10 | G39: =MAX(B39,D39) -> 0.9230328082 | J39: Zone1a | K39: =1.25*(0.19+0.91*((O38+140)/760)^2) -> 0.9230328082 | L39: > | M39: 0.81 | N39: alpha | O39: ='Toit 2x2 N'!M11 -> 10 | P39: =MAX(K39,M39) -> 0.9230328082
A40: Zone2 | B40: =0.25+1.91*((F38+140)/760)^2 -> 1.401092452 | C40: > | D40: 0.85 | G40: 1.401092452 | J40: Zone2 | K40: =0.25+1.91*((O38+140)/760)^2 -> 1.401092452 | L40: > | M40: 0.85 | P40: 1.401092452
A41: Zone2a | B41: =1.25*(0.25+1.91*((F38+140)/760)^2) -> 1.751365564 | C41: > | D41: 1.06 | G41: 1.751365564 | J41: Zone2a | K41: =1.25*(0.25+1.91*((O38+140)/760)^2) -> 1.751365564 | L41: > | M41: 1.06 | P41: 1.751365564
A42: Zone3 | B42: =0.31+2.91*((F38+140)/760)^2 -> 2.063758657 | C42: > | D42: 1.1 | G42: 2.063758657 | J42: Zone3 | K42: =0.31+2.91*((O38+140)/760)^2 -> 2.063758657 | L42: > | M42: 1.1 | P42: 2.063758657
F43: sk(calcul2) | G43: =ROUND(VLOOKUP('Toit 2x2 N'!M8,Daten!A38:G42,7),2) -> 0.92 | H43: sk choisis | I43: ='Toit 2x2 N'!P9 -> 0.92 | O43: sk(calcul2) | P43: =G43 -> 0.92 | Q43: sk choisis | R43: =I43 -> 0.92
C46: 0≤α≤30 | D46: 30<α<60 | E46: 60≤α | L46: 0≤α≤30 | M46: 30<α<60 | N46: 60≤α
A47: 2x2N | B47: µ1(α) | C47: 0.8 | D47: =ROUND(0.8*(60-F39)/30,2) -> 1.33 | E47: 0 | G47: µ1(α) | H47: =HLOOKUP(H37,C46:E47,2,FALSE) -> 0.8 | J47: 2x2N | K47: µ1(α) | L47: 0.8 | M47: =ROUND(0.8*(60-O39)/30,2) -> 1.33 | N47: 0 | P47: µ1(α) | Q47: =HLOOKUP(Q37,L46:N47,2,FALSE) -> 0.8
A48: s | B48: µ2(α) | C48: 0.8 | D48: =ROUND(0.8*(60-F39)/30,2) -> 1.33 | E48: 0 | G48: µ2(α) | H48: =HLOOKUP(H37,C46:E48,3,FALSE) -> 0.8 | J48: s | K48: µ2(α) | L48: 0.8 | M48: =ROUND(0.8*(60-O39)/30,2) -> 1.33 | N48: 0 | P48: µ2(α) | Q48: =HLOOKUP(Q37,L46:N48,3,FALSE) -> 0.8
A49: IN | B49: µ3(α) | C49: =ROUND(0.8+0.8*F39/30,2) -> 1.07 | D49: 1.6 | E49: 1.6 | G49: µ3(α) | H49: =HLOOKUP(H37,C46:E49,4,FALSE) -> 1.07 | J49: IN | K49: µ3(α) | L49: =ROUND(0.8+0.8*O39/30,2) -> 1.07 | M49: 1.6 | N49: 1.6 | P49: µ3(α) | Q49: =HLOOKUP(Q37,L46:N49,4,FALSE) -> 1.07
G54: sk1 | H54: =IF(F56<=30,"0≤α≤30", IF(AND(F56>30,F56<60),"30<α<60", IF(F56>=60,"60≤α",""))) -> 30<α<60 | P54: sk1 | Q54: =IF(O56<=30,"0≤α≤30", IF(AND(O56>30,O56<60),"30<α<60", IF(O56>=60,"60≤α",""))) -> 0≤α≤30 | Y54: sk1 | Z54: =IF(X56<=30,"0≤α≤30", IF(AND(X56>30,X56<60),"30<α<60", IF(X56>=60,"60≤α",""))) -> 0≤α≤30
A55: Zone1 | B55: =0.19+0.91*((F55+140)/760)^2 -> 0.2254484072 | C55: > | D55: 0.65 | E55: A= | F55: ='Toit 2x2 B'!M9 -> 10 | G55: =MAX(B55,D55) -> 0.65 | J55: Zone1 | K55: =0.19+0.91*((O55+140)/760)^2 -> 0.2254484072 | L55: > | M55: 0.65 | N55: A= | O55: =F55 -> 10 | P55: =MAX(K55,M55) -> 0.65 | S55: Zone1 | T55: =0.19+0.91*((X55+140)/760)^2 -> 0.2254484072 | U55: > | V55: 0.65 | W55: A= | X55: =O55 -> 10 | Y55: =MAX(T55,V55) -> 0.65
A56: Zone1a | B56: =1.25*(0.19+0.91*((F55+140)/760)^2) -> 0.281810509 | C56: > | D56: 0.81 | E56: alpha 1 | F56: ='Toit 2x2 B'!M10 -> 40 | G56: =MAX(B56,D56) -> 0.81 | J56: Zone1a | K56: =1.25*(0.19+0.91*((O55+140)/760)^2) -> 0.281810509 | L56: > | M56: 0.81 | N56: alpha 2 | O56: ='Toit 2x2 B'!M11 -> 10 | P56: =MAX(K56,M56) -> 0.81 | S56: Zone1a | T56: =1.25*(0.19+0.91*((X55+140)/760)^2) -> 0.281810509 | U56: > | V56: 0.81 | W56: alpha m | X56: =(F56+O56)*0.5 -> 25 | Y56: =MAX(T56,V56) -> 0.81
A57: Zone2 | B57: =0.25+1.91*((F55+140)/760)^2 -> 0.3244027008 | C57: > | D57: 0.85 | G57: 0.85 | J57: Zone2 | K57: =0.25+1.91*((O55+140)/760)^2 -> 0.3244027008 | L57: > | M57: 0.85 | P57: 0.85 | S57: Zone2 | T57: =0.25+1.91*((X55+140)/760)^2 -> 0.3244027008 | U57: > | V57: 0.85 | Y57: 0.85
A58: Zone2a | B58: =1.25*(0.25+1.91*((F55+140)/760)^2) -> 0.405503376 | C58: > | D58: 1.06 | G58: 1.06 | J58: Zone2a | K58: =1.25*(0.25+1.91*((O55+140)/760)^2) -> 0.405503376 | L58: > | M58: 1.06 | P58: 1.06 | S58: Zone2a | T58: =1.25*(0.25+1.91*((X55+140)/760)^2) -> 0.405503376 | U58: > | V58: 1.06 | Y58: 1.06
A59: Zone3 | B59: =0.31+2.91*((F55+140)/760)^2 -> 0.4233569945 | C59: > | D59: 1.1 | G59: 1.1 | J59: Zone3 | K59: =0.31+2.91*((O55+140)/760)^2 -> 0.4233569945 | L59: > | M59: 1.1 | P59: 1.1 | S59: Zone3 | T59: =0.31+2.91*((X55+140)/760)^2 -> 0.4233569945 | U59: > | V59: 1.1 | Y59: 1.1
F60: sk(calcul2) | G60: =VLOOKUP('Toit 2x2 B'!M8,Daten!A55:G59,7) -> 1.06 | H60: sk choisis | I60: ='Toit 2x2 B'!P9 -> 1.06 | O60: sk(calcul2) | P60: =G60 -> 1.06 | Q60: sk choisis | R60: =I60 -> 1.06 | X60: sk(calcul2) | Y60: =P60 -> 1.06 | Z60: sk choisis | AA60: =R60 -> 1.06
C63: 0≤α≤30 | D63: 30<α<60 | E63: 60≤α | L63: 0≤α≤30 | M63: 30<α<60 | N63: 60≤α | U63: 0≤α≤30 | V63: 30<α<60 | W63: 60≤α
A64: 2x2B | B64: µ1(α) | C64: 0.8 | D64: =ROUND(0.8*(60-F56)/30,2) -> 0.53 | E64: 0 | G64: µ1(α) | H64: =HLOOKUP(H54,C63:E64,2,FALSE) -> 0.53 | J64: 2x2B | K64: µ1(α) | L64: 0.8 | M64: =ROUND(0.8*(60-O56)/30,2) -> 1.33 | N64: 0 | P64: µ1(α) | Q64: =HLOOKUP(Q54,L63:N64,2,FALSE) -> 0.8 | S64: 2x2B | T64: µ1(α) | U64: 0.8 | V64: =0.8*(60-X56)/30 -> 0.9333333333 | W64: 0 | Y64: µ1(α) | Z64: =HLOOKUP(Z54,U63:W64,2,FALSE) -> 0.8
A65: s | B65: µ2(α) | C65: 0.8 | D65: =ROUND(0.8*(60-F56)/30,2) -> 0.53 | E65: 0 | G65: µ2(α) | H65: =HLOOKUP(H54,C63:E65,3,FALSE) -> 0.53 | J65: s | K65: µ2(α) | L65: 0.8 | M65: =ROUND(0.8*(60-O56)/30,2) -> 1.33 | N65: 0 | P65: µ2(α) | Q65: =HLOOKUP(Q54,L63:N65,3,FALSE) -> 0.8 | S65: s | T65: µ2(α) | U65: 0.8 | V65: =0.8*(60-X56)/30 -> 0.9333333333 | W65: 0 | Y65: µ2(α) | Z65: =HLOOKUP(Z54,U63:W65,3,FALSE) -> 0.8
A66: IN | B66: µ3(α) | C66: =ROUND(0.8+0.8*F56/30,2) -> 1.87 | D66: 1.6 | E66: 1.6 | G66: µ3(α) | H66: =HLOOKUP(H54,C63:E66,4,FALSE) -> 1.6 | J66: IN | K66: µ3(α) | L66: =ROUND(0.8+0.8*O56/30,2) -> 1.07 | M66: 1.6 | N66: 1.6 | P66: µ3(α) | Q66: =HLOOKUP(Q54,L63:N66,4,FALSE) -> 1.07 | S66: IN | T66: µ3(α) | U66: =ROUND(0.8+0.8*X56/30,2) -> 1.47 | V66: 1.6 | W66: 1.6 | Y66: µ3(α) | Z66: =HLOOKUP(Z54,U63:W66,4,FALSE) -> 1.47
G72: sk1 | H72: =IF(F74<=30,"0≤α≤30", IF(AND(F74>30,F74<60),"30<α<60", IF(F74>=60,"60≤α",""))) -> 0≤α≤30 | S72: sk1 | T72: =IF(R74<=30,"0≤α≤30", IF(AND(R74>30,R74<60),"30<α<60", IF(R74>=60,"60≤α",""))) -> 0≤α≤30
A73: Zone1 | B73: =0.19+0.91*((F73+140)/760)^2 -> 0.2254484072 | C73: > | D73: 0.65 | E73: A= | F73: ='Toit C N'!M9 -> 10 | G73: =MAX(B73,D73) -> 0.65 | M73: Zone1 | N73: =0.19+0.91*((R73+140)/760)^2 -> 0.23033241 | O73: > | P73: 0.65 | Q73: A= | R73: ='Toit C B'!$M$9 -> 20 | S73: =MAX(N73,P73) -> 0.65
A74: Zone1a | B74: =1.25*(0.19+0.91*((F73+140)/760)^2) -> 0.281810509 | C74: > | D74: 0.81 | G74: =MAX(B74,D74) -> 0.81 | M74: Zone1a | N74: =1.25*(0.19+0.91*((R73+140)/760)^2) -> 0.2879155125 | O74: > | P74: 0.81 | S74: =MAX(N74,P74) -> 0.81
A75: Zone2 | B75: =0.25+1.91*((F73+140)/760)^2 -> 0.3244027008 | C75: > | D75: 0.85 | G75: 0.85 | M75: Zone2 | N75: =0.25+1.91*((R73+140)/760)^2 -> 0.3346537396 | O75: > | P75: 0.85 | S75: 0.85
A76: Zone2a | B76: =1.25*(0.25+1.91*((F73+140)/760)^2) -> 0.405503376 | C76: > | D76: 1.06 | G76: 1.06 | M76: Zone2a | N76: =1.25*(0.25+1.91*((R73+140)/760)^2) -> 0.4183171745 | O76: > | P76: 1.06 | S76: 1.06
A77: Zone3 | B77: =0.31+2.91*((F73+140)/760)^2 -> 0.4233569945 | C77: > | D77: 1.1 | G77: 1.1 | M77: Zone3 | N77: =0.31+2.91*((R73+140)/760)^2 -> 0.4389750693 | O77: > | P77: 1.1 | S77: 1.1
F78: sk(calcul2) | G78: =VLOOKUP('Toit C N'!M8,Daten!A73:G77,7) -> 0.81 | H78: sk choisis | I78: ='Toit C N'!P9 -> 0.81 | R78: sk(calcul2) | S78: =VLOOKUP('Toit C B'!$M$8,Daten!M73:S77,7) -> 0.65 | T78: sk choisis | U78: ='Toit C B'!P9 -> 0.65
A82: C N
A83: s
A84: IN
G90: sk1 | H90: =IF(F92<=30,"0≤α≤30", IF(AND(F92>30,F92<60),"30<α<60", IF(F92>=60,"60≤α",""))) -> 0≤α≤30
A91: Zone1 | B91: =0.19+0.91*((F91+140)/760)^2 -> 0.2254484072 | C91: > | D91: 0.65 | E91: A= | F91: ='Toit + PaSol'!M11 -> 10 | G91: =MAX(B91,D91) -> 0.65
A92: Zone1a | B92: =1.25*(0.19+0.91*((F91+140)/760)^2) -> 0.281810509 | C92: > | D92: 0.81 | G92: =MAX(B92,D92) -> 0.81
A93: Zone2 | B93: =0.25+1.91*((F91+140)/760)^2 -> 0.3244027008 | C93: > | D93: 0.85 | G93: 0.85
A94: Zone2a | B94: =1.25*(0.25+1.91*((F91+140)/760)^2) -> 0.405503376 | C94: > | D94: 1.06 | G94: 1.06
A95: Zone3 | B95: =0.31+2.91*((F91+140)/760)^2 -> 0.4233569945 | C95: > | D95: 1.1 | G95: 1.1
F96: sk(calcul2) | G96: =VLOOKUP('Toit + PaSol'!M10,Daten!A91:G95,7) -> 1.1 | H96: sk choisis | I96: ='Toit + PaSol'!P11 -> 1.1
C99: 0≤α≤30 | D99: 30<α<60 | E99: 60≤α
A100: Paso | B100: µ1(α) | C100: 0.8 | D100: =0.8*(60-F92)/30 -> 1.6 | E100: 0 | G100: µ1(α) | H100: =HLOOKUP(H90,C99:E100,2,FALSE) -> 0.8
A101: s | B101: µ2(α) | C101: 0.8 | D101: =0.8*(60-F92)/30 -> 1.6 | E101: 0 | G101: µ2(α) | H101: =HLOOKUP(H90,C99:E101,3,FALSE) -> 0.8
A102: IN | B102: µ3(α) | C102: =0.8+0.8*F92/30 -> 0.8 | D102: 1.6 | E102: 1.6 | G102: µ3(α) | H102: =HLOOKUP(H90,C99:E102,4,FALSE) -> 0.8
G108: sk1 | H108: =IF(F110<=30,"0≤α≤30", IF(AND(F110>30,F110<60),"30<α<60", IF(F110>=60,"60≤α",""))) -> 0≤α≤30
A109: Zone1 | B109: =0.19+0.91*((F109+140)/760)^2 -> 0.246875 | C109: > | D109: 0.65 | E109: A= | F109: ='Toit dis'!M11 -> 50 | G109: =MAX(B109,D109) -> 0.65
A110: Zone1a | B110: =1.25*(0.19+0.91*((F109+140)/760)^2) -> 0.30859375 | C110: > | D110: 0.81 | F110: ='Toit dis'!M12 -> 5 | G110: =MAX(B110,D110) -> 0.81
A111: Zone2 | B111: =0.25+1.91*((F109+140)/760)^2 -> 0.369375 | C111: > | D111: 0.85 | G111: 0.85
A112: Zone2a | B112: =1.25*(0.25+1.91*((F109+140)/760)^2) -> 0.46171875 | C112: > | D112: 1.06 | G112: 1.06
A113: Zone3 | B113: =0.31+2.91*((F109+140)/760)^2 -> 0.491875 | C113: > | D113: 1.1 | G113: 1.1
F114: sk(calcul2) | G114: =ROUND(VLOOKUP('Toit dis'!M10,Daten!A109:G113,7),2) -> 0.65 | H114: sk choisis | I114: ='Toit dis'!P11 -> 0.65
C117: 0≤α≤30 | D117: 30<α<60 | E117: 60≤α
A118: Toit dis | B118: µ1(α) | C118: 0.8 | D118: =0.8*(60-F110)/30 -> 1.466666667 | E118: 0 | G118: µ1(α) | H118: =HLOOKUP(H108,C117:E118,2,FALSE) -> 0.8
A119: s | B119: µ2(α) | C119: 0.8 | D119: =0.8*(60-F110)/30 -> 1.466666667 | E119: 0 | G119: µ2(α) | H119: =HLOOKUP(H108,C117:E119,3,FALSE) -> 0.8
A120: IN | B120: µ3(α) | C120: =0.8+0.8*F110/30 -> 0.9333333333 | D120: 1.6 | E120: 1.6 | G120: µ3(α) | H120: =HLOOKUP(H108,C117:E120,4,FALSE) -> 0.9333333333
G125: sk1 | H125: =IF(F127<=30,"0≤α≤30", IF(AND(F127>30,F127<60),"30<α<60", IF(F127>=60,"60≤α",""))) -> 0≤α≤30
A126: Zone1 | B126: =0.19+0.91*((F126+140)/760)^2 -> 0.2254484072 | C126: > | D126: 0.65 | E126: A= | F126: =Acc!M9 -> 10 | G126: =MAX(B126,D126) -> 0.65
A127: Zone1a | B127: =1.25*(0.19+0.91*((F126+140)/760)^2) -> 0.281810509 | C127: > | D127: 0.81 | G127: =MAX(B127,D127) -> 0.81
A128: Zone2 | B128: =0.25+1.91*((F126+140)/760)^2 -> 0.3244027008 | C128: > | D128: 0.85 | G128: 0.85
A129: Zone2a | B129: =1.25*(0.25+1.91*((F126+140)/760)^2) -> 0.405503376 | C129: > | D129: 1.06 | G129: 1.06
A130: Zone3 | B130: =0.31+2.91*((F126+140)/760)^2 -> 0.4233569945 | C130: > | D130: 1.1 | G130: 1.1
F131: sk(calcul2) | G131: =ROUND(VLOOKUP(Acc!M8,Daten!A126:G130,7),2) -> 0.81 | H131: sk choisis | I131: =Acc!P9 -> 0.65
C134: 0≤α≤30 | D134: 30<α<60 | E134: 60≤α
A135: Toit dis | B135: µ1(α) | C135: 0.8 | D135: =0.8*(60-F127)/30 -> 1.6 | E135: 0 | G135: µ1(α) | H135: =HLOOKUP(H125,C134:E135,2,FALSE) -> 0.8
A136: s | B136: µ2(α) | C136: 0.8 | D136: =0.8*(60-F127)/30 -> 1.6 | E136: 0 | G136: µ2(α) | H136: =HLOOKUP(H125,C134:E136,3,FALSE) -> 0.8
A137: IN | B137: µ3(α) | C137: =0.8+0.8*F127/30 -> 0.8 | D137: 1.6 | E137: 1.6 | G137: µ3(α) | H137: =HLOOKUP(H125,C134:E137,4,FALSE) -> 0.8
G143: sk1 | H143: =IF(F145<=30,"0≤α≤30", IF(AND(F145>30,F145<60),"30<α<60", IF(F145>=60,"60≤α",""))) -> 0≤α≤30
A144: Zone1 | B144: =0.19+0.91*((F144+140)/760)^2 -> 0.2254484072 | C144: > | D144: 0.65 | E144: A= | F144: =deb!M9 -> 10 | G144: =MAX(B144,D144) -> 0.65
A145: Zone1a | B145: =1.25*(0.19+0.91*((F144+140)/760)^2) -> 0.281810509 | C145: > | D145: 0.81 | G145: =MAX(B145,D145) -> 0.81
A146: Zone2 | B146: =0.25+1.91*((F144+140)/760)^2 -> 0.3244027008 | C146: > | D146: 0.85 | G146: 0.85
A147: Zone2a | B147: =1.25*(0.25+1.91*((F144+140)/760)^2) -> 0.405503376 | C147: > | D147: 1.06 | G147: 1.06
A148: Zone3 | B148: =0.31+2.91*((F144+140)/760)^2 -> 0.4233569945 | C148: > | D148: 1.1 | G148: 1.1
F149: sk(calcul2) | G149: =ROUND(VLOOKUP(deb!M8,Daten!A144:G148,7),2) -> 0.81 | H149: sk choisis | I149: =deb!P9 -> 0.65
C152: 0≤α≤30 | D152: 30<α<60 | E152: 60≤α
A153: Toit dis | B153: µ1(α) | C153: 0.8 | D153: =0.8*(60-F145)/30 -> 1.6 | E153: 0 | G153: µ1(α) | H153: =HLOOKUP(H143,C152:E153,2,FALSE) -> 0.8
A154: s | B154: µ2(α) | C154: 0.8 | D154: =0.8*(60-F145)/30 -> 1.6 | E154: 0 | G154: µ2(α) | H154: =HLOOKUP(H143,C152:E154,3,FALSE) -> 0.8
A155: IN | B155: µ3(α) | C155: =0.8+0.8*F145/30 -> 0.8 | D155: 1.6 | E155: 1.6 | G155: µ3(α) | H155: =HLOOKUP(H143,C152:E155,4,FALSE) -> 0.8

Sheet Explication
A2: Ce fichier a pour objectif de calculer la charge de neige selon l’Eurocode. L’Eurocode EN 1991-1-3 répartit le territoire en plusieurs zones neige ; pour chaque zone,
A3: la charge de neige de base qk est déterminée en fonction de l’altitude (Plus de details B2B).
A4: Dans ce modèle, est calculée automatiquement selon la zone et l’altitude renseignées, mais vous pouvez facilement adapter sa valeur en modifiant la variable
A5: dans la figure (par exemple en la multipliant par 0 et en ajoutant +xxxkN/m²).
A14: Le bouton d’export, identique à ceux des autres fichiers Excel d’Oussama Rouchdi, permet d’enregistrer automatiquement au format PDF toutes les feuilles marquées en rouge.
A15: il suffit dans ces feuilles de choisir le cas (Toit1 versant 2 ….) et remplir les case jaunes
A17: Dans le cas Toit dis, d apres le cas vous pouvez choisir la figure en bas, si ls>ou < a h. en cliquant sur - le cas sera masqué
